fUST/lending_fUST_20250912
["ID","MTS","AMOUNT","RATE_DAILY","PERIOD"]
[385202185,1757683857960,-310.26578518,0.00014794,2]
[385202186,1757683857969,-480.0,0.00014794,2]
[385202187,1757683857978,-480.0,0.00014794,2]
[385202188,1757683857988,-480.0,0.00014794,2]
[385202189,1757683857997,-480.0,0.00014794,2]
[385202190,1757683858006,-480.0,0.00014794,2]
[385202191,1757683858015,-486.36543134,0.00014794,2]
[385202192,1757683858024,-480.0,0.00014794,2]
[385202193,1757683858033,-480.0,0.00014794,2]
[385202194,1757683858043,-480.0,0.00014794,2]
[385202195,1757683858052,-480.0,0.00014794,2]
[385202196,1757683858062,-480.0,0.00014794,2]
[385202197,1757683858071,-480.0,0.00014794,2]
[385202198,1757683858081,-480.0,0.00014794,2]
[385202199,1757683858090,-480.0,0.00014794,2]
[385202200,1757683858099,-480.0,0.00014794,2]
[385202201,1757683858108,-480.0,0.00014794,2]
[385202202,1757683858118,-480.0,0.00014794,2]
[385202203,1757683858127,-480.0,0.00014794,2]
[385202204,1757683858138,-598.8356739,0.00014794,2]
[385202205,1757683858148,-480.0,0.00014794,2]
[385202206,1757683858160,-480.0,0.00014794,2]
[385202207,1757683858170,-600.10174792,0.00014794,2]
[385202208,1757683858179,-480.0,0.00014794,2]
[385202209,1757683858190,-480.0,0.00014794,2]
[385202210,1757683858199,-480.0,0.00014794,2]
[385202211,1757683858208,-479.3960093,0.00014794,2]
[385202212,1757683858218,-480.0,0.00014794,2]
[385202213,1757683858228,-480.0,0.00014794,2]
[385202214,1757683858239,-480.0,0.00014794,2]
[385202215,1757683858250,-480.0,0.00014794,2]
[385202216,1757683858259,-480.0,0.00014794,2]
[385202217,1757683858269,-488.93,0.00014794,2]
[385202218,1757683858278,-480.0,0.00014794,2]
[385202219,1757683858287,-480.0,0.00014794,2]
[385202220,1757683858297,-480.0,0.00014794,2]
[385202221,1757683858306,-151.0,0.00014794,2]
[385202222,1757683858315,-480.0,0.00014794,2]
[385202223,1757683858325,-480.0,0.00014794,2]
[385202224,1757683858334,-480.0,0.00014794,2]
[385202225,1757683858343,-151.0,0.00014794,2]
[385202226,1757683858353,-598.87,0.00014794,2]
[385202227,1757683858362,-151.0,0.00014794,2]
[385202228,1757683858371,-480.0,0.00014794,2]
[385202229,1757683858381,-480.0,0.00014794,2]
[385202230,1757683858391,-370.04950511,0.00014794,2]
[385202231,1757683858400,-480.0,0.00014794,2]
[385202232,1757683858410,-480.0,0.00014794,2]
[385202233,1757683858419,-480.0,0.00014794,2]
[385202234,1757683858429,-151.0,0.00014794,2]
[385202235,1757683858438,-1708.18,0.00014794,2]
[385202236,1757683858448,-2329.03,0.00014794,2]
[385202237,1757683858457,-559.79,0.00014794,2]
[385202238,1757683858467,-480.0,0.00014794,2]
[385202239,1757683858476,-480.0,0.00014794,2]
[385202240,1757683858485,-480.0,0.00014794,2]
[385202241,1757683858495,-518.78,0.00014794,2]
[385202242,1757683858504,-480.0,0.00014794,2]
[385202243,1757683858513,-654.97,0.00014794,2]
[385202244,1757683858523,-480.0,0.00014794,2]
[385202245,1757683858533,-1038.08,0.00014794,2]
[385202246,1757683858542,-480.0,0.00014794,2]
[385202247,1757683858552,-480.0,0.00014794,2]
[385202248,1757683858562,-577.50064119,0.00014794,2]
[385202249,1757683858571,-590.8,0.00014794,2]
[385202250,1757683858580,-485.50320233,0.00014794,2]
[385202251,1757683858590,-480.0,0.00014794,2]
[385202252,1757683858599,-714.47,0.00014794,2]
[385202253,1757683858608,-480.0,0.00014794,2]
[385202254,1757683858618,-480.0,0.00014794,2]
[385202255,1757683858628,-732.03,0.00014794,2]
[385202256,1757683858638,-3733.72,0.00014794,2]
[385202257,1757683858647,-569.49,0.00014794,2]
[385202258,1757683858656,-200.96376046,0.00014794,2]
[385202259,1757683858666,-480.0,0.00014794,2]
[385202260,1757683858675,-510.35495562,0.00014794,2]
[385202261,1757683858685,-580.0,0.00014794,2]
[385202262,1757683858694,-480.0,0.00014794,2]
[385202263,1757683858704,-480.0,0.00014794,2]
[385202264,1757683858714,-458.32111011,0.00014794,2]
[385202265,1757683858723,-480.0,0.00014794,2]
[385202266,1757683858732,-480.0,0.00014794,2]
[385202267,1757683858742,-419.72188958,0.00014794,2]
[385202268,1757683858751,-560.73,0.00014794,2]
[385202269,1757683858760,-480.0,0.00014794,2]
[385202270,1757683858770,-480.0,0.00014794,2]
[385202271,1757683858779,-480.0,0.00014794,2]
[385202272,1757683858788,-480.0,0.00014794,2]
[385202273,1757683858798,-649.79,0.00014794,2]
[385202274,1757683858807,-532.82,0.00014794,2]
[385202275,1757683858816,-522.3804249,0.00014794,2]
[385202276,1757683858826,-480.0,0.00014794,2]
[385202277,1757683858835,-480.0,0.00014794,2]
[385202278,1757683858844,-480.0,0.00014794,2]
[385202279,1757683858854,-480.0,0.00014794,2]
[385202280,1757683858863,-480.0,0.00014794,2]
[385202281,1757683858873,-480.0,0.00014794,2]
[385202282,1757683858883,-480.0,0.00014794,2]
[385202283,1757683858893,-574.58,0.00014794,2]
[385202284,1757683858902,-480.0,0.00014794,2]
[385202285,1757683858912,-480.0,0.00014794,2]
[385202286,1757683858921,-480.0,0.00014794,2]
[385202287,1757683858931,-480.0,0.00014794,2]
[385202288,1757683858940,-480.0,0.00014794,2]
[385202289,1757683858949,-480.0,0.00014794,2]
[385202290,1757683858958,-480.0,0.00014794,2]
[385202291,1757683858968,-480.0,0.00014794,2]
[385202292,1757683858977,-480.0,0.00014794,2]
[385202293,1757683858987,-480.0,0.00014794,2]
[385202294,1757683858997,-2758.53,0.00014794,2]
[385202295,1757683859006,-480.0,0.00014794,2]
[385202296,1757683859015,-480.0,0.00014794,2]
[385202297,1757683859024,-480.0,0.00014794,2]
[385202298,1757683859034,-597.5525167,0.00014794,2]
[385202299,1757683859114,-480.0,0.00014794,2]
[385202300,1757683859124,-686.15,0.00014794,2]
[385202301,1757683859133,-344.47283,0.00014794,2]
[385202302,1757683859143,-978.27,0.00014794,2]
[385202303,1757683859154,-474.75949799,0.00014794,2]
[385202304,1757683859167,-480.0,0.00014794,2]
[385202305,1757683859176,-480.0,0.00014794,2]
[385202306,1757683859185,-600.0,0.000148,3]
[385202307,1757683859196,-10585.41552735,0.00014883,2]
[385202308,1757683859206,-160.0,0.00014883,2]
[385202309,1757683859216,-160.0,0.00014883,2]
[385202310,1757683859225,-160.0,0.00014883,2]
[385202311,1757683859236,-417.15472785,0.00014886,2]
[385202312,1757683859246,-160.0,0.00014886,2]
[385202313,1757683859256,-160.0,0.00014886,2]
[385202314,1757683859266,-160.0,0.00014886,2]
[385202315,1757683859276,-847.0429734,0.00014886,2]
[385202316,1757683859285,-160.0,0.00014886,2]
[385202317,1757683859295,-531.04384426,0.00014886,2]
[385202318,1757683859304,-233.13074058,0.00014886,2]
[385202319,1757683859313,-160.0,0.00014886,2]
[385202320,1757683859323,-160.0,0.00014886,2]
[385202321,1757683859332,-217.7145751,0.00014886,2]
[385202322,1757683859342,-160.0,0.00014886,2]
[385202323,1757683859351,-155.0,0.00015067,2]
[385202324,1757683859361,-480.0,0.00015068,2]
[385202325,1757683859371,-480.0,0.00015068,2]
[385202326,1757683859380,-480.0,0.00015068,2]
[385202327,1757683859392,-480.0,0.00015068,2]
[385202328,1757683859401,-480.0,0.00015068,2]
[385202329,1757683859410,-480.0,0.00015068,2]
[385202330,1757683859420,-480.0,0.00015068,2]
[385202331,1757683859430,-480.0,0.00015068,2]
[385202332,1757683859440,-480.0,0.00015068,2]
[385202333,1757683859449,-480.0,0.00015068,2]
[385202334,1757683859459,-480.0,0.00015068,2]
[385202335,1757683859469,-480.0,0.00015068,2]
[385202336,1757683859478,-480.0,0.00015068,2]
[385202337,1757683859487,-480.0,0.00015068,2]
[385202338,1757683859497,-480.0,0.00015068,2]
[385202339,1757683859507,-480.0,0.00015068,2]
[385202340,1757683859516,-488.93,0.00015068,2]
[385202342,1757683859526,-480.0,0.00015068,2]
[385202343,1757683859535,-480.0,0.00015068,2]
[385202344,1757683859545,-480.0,0.00015068,2]
[385202345,1757683859554,-598.87,0.00015068,2]
[385202346,1757683859565,-480.0,0.00015068,2]
[385202347,1757683859575,-480.0,0.00015068,2]
[385202348,1757683859586,-480.0,0.00015068,2]
[385202349,1757683859595,-396.48770601,0.00015068,2]
[385202350,1757683859617,-480.0,0.0001452,2]
[385202351,1757683859627,-1311.69229399,0.00015068,2]
[385202352,1757683859636,-2329.03,0.00015068,2]
[385202353,1757683859647,-559.79,0.00015068,2]
[385202354,1757683859657,-480.0,0.00015068,2]
[385202355,1757683859667,-480.0,0.00015068,2]
[385202356,1757683859676,-480.0,0.00015068,2]
[385202357,1757683859686,-518.78,0.00015068,2]
[385202358,1757683859695,-480.0,0.00015068,2]
[385202359,1757683859705,-654.97,0.00015068,2]
[385202360,1757683859714,-480.0,0.00015068,2]
[385202361,1757683859723,-1038.08,0.00015068,2]
[385202362,1757683859733,-480.0,0.00015068,2]
[385202363,1757683859743,-590.8,0.00015068,2]
[385202364,1757683859752,-714.47,0.00015068,2]
[385202365,1757683859761,-480.0,0.00015068,2]
[385202366,1757683859771,-480.0,0.00015068,2]
[385202367,1757683859780,-732.03,0.00015068,2]
[385202368,1757683859790,-3733.72,0.00015068,2]
[385202369,1757683859799,-569.49,0.00015068,2]
[385202370,1757683859808,-431.48,0.00015068,2]
[385202371,1757683859817,-580.0,0.00015068,2]
[385202372,1757683859827,-480.0,0.00015068,2]
[385202373,1757683859836,-480.0,0.00015068,2]
[385202374,1757683859846,-480.0,0.00015068,2]
[385202375,1757683859855,-560.73,0.00015068,2]
[385202376,1757683859865,-480.0,0.00015068,2]
[385202377,1757683859874,-480.0,0.00015068,2]
[385202378,1757683859883,-480.0,0.00015068,2]
[385202379,1757683859894,-480.0,0.00015068,2]
[385202380,1757683859904,-649.79,0.00015068,2]
[385202381,1757683859913,-532.82,0.00015068,2]
[385202382,1757683859923,-480.0,0.00015068,2]
[385202383,1757683859933,-480.0,0.00015068,2]
[385202384,1757683859943,-480.0,0.00015068,2]
[385202385,1757683859952,-480.0,0.00015068,2]
[385202386,1757683859961,-480.0,0.00015068,2]
[385202387,1757683859971,-480.0,0.00015068,2]
[385202388,1757683859980,-574.58,0.00015068,2]
[385202389,1757683859990,-480.0,0.00015068,2]
[385202390,1757683859999,-480.0,0.00015068,2]
[385202391,1757683860009,-480.0,0.00015068,2]
[385202392,1757683860019,-480.0,0.00015068,2]
[385202393,1757683860028,-480.0,0.00015068,2]
[385202394,1757683860038,-480.0,0.00015068,2]
[385202395,1757683860049,-480.0,0.00015068,2]
[385202396,1757683860059,-480.0,0.00015068,2]
[385202397,1757683860069,-517.93457634,0.00015068,2]
[385202398,1757683860079,-2758.53,0.00015068,2]
[385202399,1757683860088,-480.0,0.00015068,2]
[385202400,1757683860098,-393.5565196,0.00015068,2]
[385202401,1757683860108,-480.0,0.00015068,2]
[385202402,1757683860118,-480.0,0.00015068,2]
[385202403,1757683860127,-686.15,0.00015068,2]
[385202404,1757683860136,-978.27,0.00015068,2]
[385202405,1757683860149,-231.782436,0.00015068,2]
[385202406,1757683860160,-500.0,0.00015068,2]
[385202407,1757683860170,-1000.0,0.00015121,2]
[385202408,1757683860180,-260.0,0.00015164,2]
[385202409,1757683860191,-1500.0,0.00015316,2]
[385202410,1757683860200,-2000.0,0.00015316,2]
[385202411,1757683860210,-2000.0,0.00015316,2]
[385202412,1757683860219,-480.0,0.00015342,2]
[385202413,1757683860232,-480.0,0.00015342,2]
[385202414,1757683860243,-480.0,0.00015342,2]
[385202415,1757683860252,-480.0,0.00015342,2]
[385202416,1757683860262,-480.0,0.00015342,2]
[385202417,1757683860271,-480.0,0.00015342,2]
[385202418,1757683860281,-480.0,0.00015342,2]
[385202419,1757683860291,-480.0,0.00015342,2]
[385202420,1757683860301,-480.0,0.00015342,2]
[385202421,1757683860311,-480.0,0.00015342,2]
[385202422,1757683860320,-480.0,0.00015342,2]
[385202423,1757683860331,-480.0,0.00015342,2]
[385202424,1757683860340,-488.93,0.00015342,2]
[385202425,1757683860350,-480.0,0.00015342,2]
[385202426,1757683860359,-376.80897342,0.00015342,2]
[385202427,1757683860369,-480.0,0.00015342,2]
[385202428,1757683860379,-598.87,0.00015342,2]
[385202429,1757683860459,-480.0,0.00015342,2]
[385202430,1757683860470,-480.0,0.00015342,2]
[385202431,1757683860480,-480.0,0.00015342,2]
[385202432,1757683860489,-1708.18,0.00015342,2]
[385202433,1757683860499,-2329.03,0.00015342,2]
[385202434,1757683860509,-559.79,0.00015342,2]
[385202435,1757683860519,-480.0,0.00015342,2]
[385202436,1757683860529,-480.0,0.00015342,2]
[385202437,1757683860540,-480.0,0.00015342,2]
[385202438,1757683860550,-518.78,0.00015342,2]
[385202439,1757683860560,-480.0,0.00015342,2]
[385202440,1757683860570,-654.97,0.00015342,2]
[385202441,1757683860579,-434.7035659,0.00015342,2]
[385202442,1757683860589,-1038.08,0.00015342,2]
[385202443,1757683860598,-480.0,0.00015342,2]
[385202444,1757683860606,-590.8,0.00015342,2]
[385202445,1757683860616,-714.47,0.00015342,2]
[385202446,1757683860627,-480.0,0.00015342,2]
[385202447,1757683860638,-732.03,0.00015342,2]
[385202448,1757683860650,-3733.72,0.00015342,2]
[385202449,1757683860659,-569.49,0.00015342,2]
[385202450,1757683860669,-580.0,0.00015342,2]
[385202451,1757683860679,-480.0,0.00015342,2]
[385202452,1757683860689,-480.0,0.00015342,2]
[385202453,1757683860698,-480.0,0.00015342,2]
[385202454,1757683860709,-560.73,0.00015342,2]
[385202455,1757683860720,-480.0,0.00015342,2]
[385202456,1757683860730,-174.50086071,0.00015342,2]
[385202457,1757683860739,-480.0,0.00015342,2]
[385202458,1757683860749,-480.0,0.00015342,2]
[385202459,1757683860759,-649.79,0.00015342,2]
[385202460,1757683860768,-532.82,0.00015342,2]
[385202461,1757683860778,-480.0,0.00015342,2]
[385202462,1757683860788,-480.0,0.00015342,2]
[385202463,1757683860798,-480.0,0.00015342,2]
[385202464,1757683860807,-480.0,0.00015342,2]
[385202465,1757683860817,-296.50339885,0.00015342,2]
[385202466,1757683860827,-480.0,0.00015342,2]
[385202467,1757683860838,-574.58,0.00015342,2]
[385202468,1757683860848,-480.0,0.00015342,2]
[385202469,1757683860858,-480.0,0.00015342,2]
[385202470,1757683860867,-480.0,0.00015342,2]
[385202471,1757683860877,-480.0,0.00015342,2]
[385202472,1757683860886,-480.0,0.00015342,2]
[385202473,1757683860900,-480.0,0.00015342,2]
[385202474,1757683860910,-582.02554439,0.00015342,2]
[385202475,1757683860919,-2758.53,0.00015342,2]
[385202476,1757683860929,-480.0,0.00015342,2]
[385202477,1757683860938,-480.0,0.00015342,2]
[385202478,1757683860948,-480.0,0.00015342,2]
[385202479,1757683860958,-686.15,0.00015342,2]
[385202480,1757683860968,-978.27,0.00015342,2]
[385202481,1757683860981,-720.0,0.00015368,2]
[385202482,1757683860991,-480.0,0.00015616,2]
[385202483,1757683861001,-480.0,0.00015616,2]
[385202484,1757683861010,-414.16535971,0.00015616,2]
[385202485,1757683861021,-480.0,0.00015616,2]
[385202486,1757683861034,-480.0,0.00015616,2]
[385202487,1757683861044,-480.0,0.00015616,2]
[385202488,1757683861054,-480.0,0.00015616,2]
[385202489,1757683861064,-480.0,0.00015616,2]
[385202490,1757683861073,-480.0,0.00015616,2]
[385202491,1757683861083,-480.0,0.00015616,2]
[385202492,1757683861093,-488.93,0.00015616,2]
[385202493,1757683861102,-480.0,0.00015616,2]
[385202494,1757683861111,-480.0,0.00015616,2]
[385202495,1757683861121,-598.87,0.00015616,2]
[385202496,1757683861131,-473.62454117,0.00015616,2]
[385202497,1757683861141,-431.63745301,0.00015616,2]
[385202498,1757683861153,-480.0,0.00015616,2]
[385202499,1757683861163,-1708.18,0.00015616,2]
[385202500,1757683861173,-2329.03,0.00015616,2]
[385202501,1757683861183,-559.79,0.00015616,2]
[385202502,1757683861192,-480.0,0.00015616,2]
[385202503,1757683861203,-480.0,0.00015616,2]
[385202504,1757683861213,-480.0,0.00015616,2]
[385202505,1757683861222,-518.78,0.00015616,2]
[385202506,1757683861234,-460.0,0.00015616,2]
[385202507,1757683861244,-654.97,0.00015616,2]
[385202508,1757683861254,-1038.08,0.00015616,2]
[385202509,1757683861264,-480.0,0.00015616,2]
[385202510,1757683861273,-590.8,0.00015616,2]
[385202511,1757683861283,-714.47,0.00015616,2]
[385202512,1757683861292,-732.03,0.00015616,2]
[385202513,1757683861302,-3733.72,0.00015616,2]
[385202514,1757683861312,-569.49,0.00015616,2]
[385202515,1757683861321,-580.0,0.00015616,2]
[385202516,1757683861330,-480.0,0.00015616,2]
[385202517,1757683861340,-480.0,0.00015616,2]
[385202518,1757683861350,-480.0,0.00015616,2]
[385202519,1757683861360,-560.73,0.00015616,2]
[385202520,1757683861369,-480.0,0.00015616,2]
[385202521,1757683861379,-480.0,0.00015616,2]
[385202522,1757683861389,-480.0,0.00015616,2]
[385202523,1757683861402,-649.79,0.00015616,2]
[385202524,1757683861412,-532.82,0.00015616,2]
[385202525,1757683861421,-480.0,0.00015616,2]
[385202526,1757683861431,-480.0,0.00015616,2]
[385202527,1757683861441,-480.0,0.00015616,2]
[385202528,1757683861450,-480.0,0.00015616,2]
[385202529,1757683861460,-480.0,0.00015616,2]
[385202530,1757683861470,-574.58,0.00015616,2]
[385202531,1757683861480,-480.0,0.00015616,2]
[385202532,1757683861489,-480.0,0.00015616,2]
[385202533,1757683861499,-480.0,0.00015616,2]
[385202534,1757683861508,-480.0,0.00015616,2]
[385202535,1757683861518,-480.0,0.00015616,2]
[385202536,1757683861528,-480.0,0.00015616,2]
[385202537,1757683861538,-2758.53,0.00015616,2]
[385202538,1757683861547,-480.0,0.00015616,2]
[385202539,1757683861556,-480.0,0.00015616,2]
[385202540,1757683861567,-480.0,0.00015616,2]
[385202541,1757683861576,-686.15,0.00015616,2]
[385202542,1757683861586,-978.27,0.00015616,2]
[385202543,1757683861595,-1613.49633172,0.0001565,2]
[385202544,1757683861605,-922.18671453,0.00015682,2]
[385202545,1757683861615,-360.0,0.00015712,2]
[385202546,1757683861624,-2500.0,0.00015864,2]
[385202547,1757683861634,-2500.0,0.00015864,2]
[385202548,1757683861649,-480.0,0.0001589,2]
[385202549,1757683861660,-480.0,0.0001589,2]
[385202550,1757683861738,-480.0,0.0001589,2]
[385202551,1757683861748,-480.0,0.0001589,2]
[385202552,1757683861757,-480.0,0.0001589,2]
[385202553,1757683861767,-480.0,0.0001589,2]
[385202554,1757683861776,-480.0,0.0001589,2]
[385202555,1757683861786,-488.93,0.0001589,2]
[385202556,1757683861795,-480.0,0.0001589,2]
[385202557,1757683861805,-480.0,0.0001589,2]
[385202558,1757683861819,-598.87,0.0001589,2]
[385202559,1757683861828,-480.0,0.0001589,2]
[385202560,1757683861837,-1708.18,0.0001589,2]
[385202561,1757683861846,-2329.03,0.0001589,2]
[385202562,1757683861855,-559.79,0.0001589,2]
[385202563,1757683861865,-480.0,0.0001589,2]
[385202564,1757683861875,-480.0,0.0001589,2]
[385202565,1757683861884,-480.0,0.0001589,2]
[385202566,1757683861895,-518.78,0.0001589,2]
[385202567,1757683861904,-654.97,0.0001589,2]
[385202568,1757683861914,-1038.08,0.0001589,2]
[385202569,1757683861924,-480.0,0.0001589,2]
[385202570,1757683861933,-590.8,0.0001589,2]
[385202571,1757683861942,-714.47,0.0001589,2]
[385202572,1757683861951,-732.03,0.0001589,2]
[385202573,1757683861960,-3733.72,0.0001589,2]
[385202574,1757683861970,-569.49,0.0001589,2]
[385202575,1757683861979,-580.0,0.0001589,2]
[385202576,1757683861988,-480.0,0.0001589,2]
[385202577,1757683861999,-480.0,0.0001589,2]
[385202578,1757683862008,-480.0,0.0001589,2]
[385202579,1757683862017,-560.73,0.0001589,2]
[385202580,1757683862026,-480.0,0.0001589,2]
[385202581,1757683862037,-480.0,0.0001589,2]
[385202582,1757683862046,-480.0,0.0001589,2]
[385202583,1757683862055,-649.79,0.0001589,2]
[385202584,1757683862064,-532.82,0.0001589,2]
[385202585,1757683862074,-480.0,0.0001589,2]
[385202586,1757683862085,-480.0,0.0001589,2]
[385202587,1757683862095,-480.0,0.0001589,2]
[385202588,1757683862104,-480.0,0.0001589,2]
[385202589,1757683862114,-576.00926564,0.0001589,2]
[385202590,1757683862125,-574.58,0.0001589,2]
[385202591,1757683862135,-480.0,0.0001589,2]
[385202592,1757683862148,-480.0,0.0001589,2]
[385202593,1757683862160,-480.0,0.0001589,2]
[385202594,1757683862169,-480.0,0.0001589,2]
[385202595,1757683862179,-480.0,0.0001589,2]
[385202596,1757683862188,-480.0,0.0001589,2]
[385202597,1757683862196,-2758.53,0.0001589,2]
[385202598,1757683862206,-480.0,0.0001589,2]
[385202599,1757683862215,-480.0,0.0001589,2]
[385202600,1757683862225,-480.0,0.0001589,2]
[385202601,1757683862234,-686.15,0.0001589,2]
[385202602,1757683862246,-978.27,0.0001589,2]
[385202603,1757683862255,-217.0,0.00016092,2]
[385202604,1757683862264,-480.0,0.00016164,2]
[385202605,1757683862281,-264.83786313,0.00016164,2]
[385202606,1757683862300,-480.0,0.00016164,2]
[385202607,1757683862318,-480.0,0.00016164,2]
[385202608,1757683862337,-480.0,0.00016164,2]
[385202609,1757683862358,-151.0,0.00016164,2]
[385202610,1757683862377,-480.0,0.00016164,2]
[385202611,1757683862394,-151.0,0.00016164,2]
[385202612,1757683862412,-488.93,0.00016164,2]
[385202613,1757683862427,-187.198315,0.00016164,2]
[385202614,1757683862447,-480.0,0.00016164,2]
[385202615,1757683862467,-480.0,0.00016164,2]
[385202616,1757683862488,-598.87,0.00016164,2]
[385202617,1757683862501,-480.0,0.00016164,2]
[385202618,1757683862522,-1708.18,0.00016164,2]
[385202619,1757683862537,-2329.03,0.00016164,2]
[385202620,1757683862553,-559.79,0.00016164,2]
[385202621,1757683862567,-480.0,0.00016164,2]
[385202622,1757683862581,-480.0,0.00016164,2]
[385202623,1757683862596,-480.0,0.00016164,2]
[385202624,1757683862612,-518.78,0.00016164,2]
[385202625,1757683862627,-654.97,0.00016164,2]
[385202626,1757683862643,-1038.08,0.00016164,2]
[385202627,1757683862657,-480.0,0.00016164,2]
[385202628,1757683862674,-590.8,0.00016164,2]
[385202629,1757683862690,-714.47,0.00016164,2]
[385202630,1757683862704,-732.03,0.00016164,2]
[385202631,1757683862718,-3733.72,0.00016164,2]
[385202632,1757683862733,-569.49,0.00016164,2]
[385202633,1757683862747,-580.0,0.00016164,2]
[385202634,1757683862768,-480.0,0.00016164,2]
[385202635,1757683862780,-480.0,0.00016164,2]
[385202636,1757683862790,-480.0,0.00016164,2]
[385202637,1757683862799,-560.73,0.00016164,2]
[385202638,1757683862809,-480.0,0.00016164,2]
[385202639,1757683862819,-480.0,0.00016164,2]
[385202640,1757683862829,-480.0,0.00016164,2]
[385202641,1757683862839,-649.79,0.00016164,2]
[385202642,1757683862849,-532.82,0.00016164,2]
[385202643,1757683862859,-480.0,0.00016164,2]
[385202644,1757683862869,-480.0,0.00016164,2]
[385202645,1757683862879,-480.0,0.00016164,2]
[385202646,1757683862891,-574.58,0.00016164,2]
[385202647,1757683862900,-480.0,0.00016164,2]
[385202648,1757683862910,-480.0,0.00016164,2]
[385202649,1757683862922,-480.0,0.00016164,2]
[385202650,1757683862931,-480.0,0.00016164,2]
[385202651,1757683862942,-480.0,0.00016164,2]
[385202652,1757683862952,-480.0,0.00016164,2]
[385202653,1757683862962,-2758.53,0.00016164,2]
[385202654,1757683862972,-480.0,0.00016164,2]
[385202655,1757683862981,-480.0,0.00016164,2]
[385202656,1757683862991,-480.0,0.00016164,2]
[385202657,1757683863000,-686.15,0.00016164,2]
[385202658,1757683863010,-978.27,0.00016164,2]
[385202659,1757683863020,-620.0,0.0001626,2]
[385202660,1757683863030,-3000.0,0.000164,2]
[385202661,1757683863269,-3000.0,0.000164,2]
[385202662,1757683863287,-151.0,0.000164,2]
[385202663,1757683863298,-151.0,0.000164,2]
[385202664,1757683863309,-151.0,0.000164,2]
[385202665,1757683863319,-158.140728,0.000164,2]
[385202666,1757683863329,-1000.0,0.00016412,2]
[385202667,1757683863340,-1000.0,0.00016412,2]
[385202668,1757683863349,-500.0,0.00016438,2]
[385202669,1757683863359,-500.0,0.00016438,2]
[385202670,1757683863369,-504.33265287,0.00016438,2]
[385202671,1757683863380,-480.0,0.00016438,2]
[385202672,1757683863390,-480.0,0.00016438,2]
[385202673,1757683863404,-480.0,0.00016438,2]
[385202674,1757683863414,-480.0,0.00016438,2]
[385202675,1757683863424,-488.93,0.00016438,2]
[385202676,1757683863435,-480.0,0.00016438,2]
[385202677,1757683863445,-500.0,0.00016438,2]
[385202678,1757683863456,-500.0,0.00016438,2]
[385202679,1757683863466,-500.0,0.00016438,2]
[385202680,1757683863476,-500.0,0.00016438,2]
[385202681,1757683863486,-500.0,0.00016438,2]
[385202682,1757683863496,-500.0,0.00016438,2]
[385202683,1757683863506,-500.0,0.00016438,2]
[385202684,1757683863516,-500.0,0.00016438,2]
[385202685,1757683863526,-500.0,0.00016438,2]